{"text_format":"1","workbook":"xlsx","n_sheets":6,"sheets":["Explications","Explications2","TDM","Client1","Client2","Client3"],"not_rendered":{"charts":0,"images":4,"macros":0,"external_links":0,"defined_names":2,"comments":0,"pivot_tables":0},"unopened":[],"bounds":{"document_bytes":16777216,"sheet_cells":100000,"rows_first":2000,"rows_last":500,"rows_between":2000,"halvings":0,"cell_chars":16384,"cell_head_chars":4096},"cells_cut":0,"cells_raw":0,"read":"whole","date_system":"1900"}

{"sheet":"Explications","index":0,"n_rows":43,"n_cols":11,"rows_kept":43,"cut":false,"hidden":false,"merged":[]}
[]
[null,"Dans ce classeur vous allez apprendre à lister les feuilles d'un classeur"]
[null,"=> 2 façons de procéder vont être enviagées :"]
[null,null,"- Une première qui présente la difficulté de créer une zone nommée un peu complexe"]
[null,null,"- Une seconde dont la zone nommée est plus facile à créer mais qui demande plus de réorganisation dans un second temps"]
[]
[]
["Méthode 1 :","En définissant un nom un peu complexe",null,null,null,null,"Méthode 2 :","En définissant un nom plus simple et en \"nettoyant\" le résultat par formule"]
[]
["1-","Via l'onglet 'Formules', créer un nom défini tel que ceci : ",null,null,null,null,"1-","Via l'onglet 'Formules', créer un nom défini tel que ceci : "]
[null,"'=REMPLACER(LIRE.CLASSEUR(1);1;CHERCHE(\"]\";LIRE.CLASSEUR(1));\"\")",null,null,null,null,null,"=LIRE.CLASSEUR(1)"]
[]
[]
[]
[]
[]
[]
[]
[]
[]
[]
[]
[]
[]
[]
[]
["2-","Utiliser la zone nommée dans les formules utilisées ici :",null,null,null,null,"2-","Utiliser la zone nommée dans les formules utilisées ici :"]
[null,"Créer le lien hypertexte en utilisant la fonction 'Lien_Hypertexte'",null,null,null,null,null,"Obtenir le nom de la feuille en enlevant tout ce qui se trouve avant le \"]\""]
[null,null,null,null,null,null,null,"Créer le lien hypertexte en utilisant la fonction 'Lien_Hypertexte'"]
[]
[1,{"$f":"INDEX(MesFeuillesSecondEssai,A31)","v":"Explications"},{"$f":"HYPERLINK((\"#'\"&B31&\"'!A1\"),\"Aller à la feuille \"&B31)","v":"Aller à la feuille Explications"},null,null,null,1,{"$f":"INDEX(MesFeuilles,G31)","v":"[5-ExerciceSup5-ListerOnglets.xlsm]Explications"},{"$f":"FIND(\"]\",H31)","v":35},{"$f":"RIGHT(H31,LEN(H31)-I31)","v":"Explications"},{"$f":"HYPERLINK(\"#'\"&J31&\"'!A1\",\"On va à \"&J31)","v":"On va à Explications"}]
[2,{"$f":"INDEX(MesFeuillesSecondEssai,A32)","v":"TDM"},{"$f":"HYPERLINK((\"#'\"&B32&\"'!A1\"),\"Aller à la feuille \"&B32)","v":"Aller à la feuille TDM"},null,null,null,2,{"$f":"INDEX(MesFeuilles,G32)","v":"[5-ExerciceSup5-ListerOnglets.xlsm]TDM"},{"$f":"FIND(\"]\",H32)","v":35},{"$f":"RIGHT(H32,LEN(H32)-I32)","v":"TDM"},{"$f":"HYPERLINK(\"#'\"&J32&\"'!A1\",\"On va à \"&J32)","v":"On va à TDM"}]
[3,{"$f":"INDEX(MesFeuillesSecondEssai,A33)","v":"Client1"},"Aller à la feuille Client1",null,null,null,3,{"$f":"INDEX(MesFeuilles,G33)","v":"[5-ExerciceSup5-ListerOnglets.xlsm]Client1"},35,"Client1","On va à Client1"]
[4,{"$f":"INDEX(MesFeuillesSecondEssai,A34)","v":"Client2"},"Aller à la feuille Client2",null,null,null,4,{"$f":"INDEX(MesFeuilles,G34)","v":"[5-ExerciceSup5-ListerOnglets.xlsm]Client2"},35,"Client2","On va à Client2"]
[5,{"$f":"INDEX(MesFeuillesSecondEssai,A35)","v":"Client3"},"Aller à la feuille Client3",null,null,null,5,{"$f":"INDEX(MesFeuilles,G35)","v":"[5-ExerciceSup5-ListerOnglets.xlsm]Client3"},35,"Client3","On va à Client3"]
[6,{"$f":"INDEX(MesFeuillesSecondEssai,A36)","v":{"$error":"#REF!"}},{"$error":"#REF!"},null,null,null,6,{"$f":"INDEX(MesFeuilles,G36)","v":{"$error":"#REF!"}},{"$error":"#REF!"},{"$error":"#REF!"},{"$error":"#REF!"}]
[7,{"$f":"INDEX(MesFeuillesSecondEssai,A37)","v":{"$error":"#REF!"}},{"$error":"#REF!"}]
[8,{"$f":"INDEX(MesFeuillesSecondEssai,A38)","v":{"$error":"#REF!"}},{"$error":"#REF!"}]
[]
[]
[]
["NB: ","Le classeur doit être enregistré au format xlsm"]
[null,"La macro 'LIRE.CLASSEUR' doit être autorisée via les propriétés de sécurité des macros (Fichier .. Options) :"]

{"sheet":"Explications2","index":1,"n_rows":16,"n_cols":7,"rows_kept":16,"cut":false,"hidden":false,"merged":[]}
[]
["Alons un peu plus loin dans le fonctionnement et dans l'automatisation des choses"]
[]
[]
["Utilisation de la zone nommée 'MesFeuilles :",{"$f":"MesFeuilles","v":"[5-ExerciceSup5-ListerOnglets.xlsm]Explications"},"[5-ExerciceSup5-ListerOnglets.xlsm]Explications2","[5-ExerciceSup5-ListerOnglets.xlsm]TDM","[5-ExerciceSup5-ListerOnglets.xlsm]Client1","[5-ExerciceSup5-ListerOnglets.xlsm]Client2","[5-ExerciceSup5-ListerOnglets.xlsm]Client3"]
[]
["Nombre de feuilles du classeur","Créer une liste des valeurs jusqu'au nombre de feuille","Lister les feuilles du classeur","Nettoyer le \"chemin\" ",null,"Créer le lien"]
["(fonction utilisée : FEUILLES)","(fonction utilisée : SEQUENCE)","en obtenant les données de la matrice ci-dessus avec INDEX","=> Position du ] avec trouve","=> Obtenir le nom du fichier avec 'DROITE","Syntaxte du lien : \"#'NomFeuille'!A1\""]
[null,null,null,null,null,{"$f":"HYPERLINK(\"#'Explications'!A1\",\"On y va\")","v":"On y va"}]
[]
[{"$f":"_xlfn.SHEETS()","v":6},{"$f":"_xlfn.SEQUENCE(A11)","v":1},{"$f":"INDEX(_xlfn.ANCHORARRAY($B$5),B11)","v":"[5-ExerciceSup5-ListerOnglets.xlsm]Explications"},{"$f":"FIND(\"]\",C11)","v":35},{"$f":"RIGHT(C11,LEN(C11)-$D$11)","v":"Explications"},{"$f":"HYPERLINK(\"#'\"&E11&\"'!A1\",\"Allons à \"&E11)","v":"Allons à Explications"}]
[null,2,{"$f":"INDEX(_xlfn.ANCHORARRAY($B$5),B12)","v":"[5-ExerciceSup5-ListerOnglets.xlsm]Explications2"},null,{"$f":"RIGHT(C12,LEN(C12)-$D$11)","v":"Explications2"},{"$f":"HYPERLINK(\"#'\"&E12&\"'!A1\",\"Allons à \"&E12)","v":"Allons à Explications2"}]
[null,3,{"$f":"INDEX(_xlfn.ANCHORARRAY($B$5),B13)","v":"[5-ExerciceSup5-ListerOnglets.xlsm]TDM"},null,"TDM","Allons à TDM"]
[null,4,{"$f":"INDEX(_xlfn.ANCHORARRAY($B$5),B14)","v":"[5-ExerciceSup5-ListerOnglets.xlsm]Client1"},null,"Client1","Allons à Client1"]
[null,5,{"$f":"INDEX(_xlfn.ANCHORARRAY($B$5),B15)","v":"[5-ExerciceSup5-ListerOnglets.xlsm]Client2"},null,"Client2","Allons à Client2"]
[null,6,{"$f":"INDEX(_xlfn.ANCHORARRAY($B$5),B16)","v":"[5-ExerciceSup5-ListerOnglets.xlsm]Client3"},null,"Client3","Allons à Client3"]

{"sheet":"TDM","index":2,"n_rows":0,"n_cols":0,"rows_kept":0,"cut":false,"hidden":false,"merged":[]}

{"sheet":"Client1","index":3,"n_rows":0,"n_cols":0,"rows_kept":0,"cut":false,"hidden":false,"merged":[]}

{"sheet":"Client2","index":4,"n_rows":0,"n_cols":0,"rows_kept":0,"cut":false,"hidden":false,"merged":[]}

{"sheet":"Client3","index":5,"n_rows":0,"n_cols":0,"rows_kept":0,"cut":false,"hidden":false,"merged":[]}